Cogmind - Beta 10.2 @@@ ROGUE MODE // 2021.04.23 @ 07:33:40 Player: thingamajigger Result: Destroyed by P-70 Sage with Tesla Rifle Performance ------------- Evolutions (5) 2500 Regions Visited (14) 2800 Robots Destroyed (123) 615 Value Destroyed (4896) 4896 Prototype IDs (43) 860 Alien Tech Used (0) 0 Bonus (2201) 2201 TOTAL SCORE: 13872 Bonus ------- High Alert Combat Kills 1133 Follower Combat Kills 468 Aligned with FarCom 300 Met Data Miner 300 Cogmind --------- Core Integrity 0/1000 Matter 119/300 Energy 15/160 System Corruption 6% Temperature Cool (4) Movement Flying (37) Location -5/Factory Parts ------- > --- POWER (1) -------- Light Nuclear Core > --- PROPULSION (4) --- VTOL Module VTOL Module > --- UTILITY (10) ----- Improved Coolant Injector Advanced Weight Redist. System Improved Terrain Scanner 0b10 Decoder Chip [Generic] Targeting Computer Improved Target Analyzer > --- WEAPON (2) ------- Lance > --- INVENTORY (4) ---- Overload Regulator Core Shielding Improved Proton Missile Launcher Peak State ------------ > --- POWER ------------ Antimatter Reactor > --- PROPULSION ------- Medium Treads Heavy Treads > --- UTILITY ---------- Advanced Cryofiber Web Humpback Advanced Targeting Computer Improved Medium Armor Plating Recalibrator PSU Rigger > --- WEAPON ----------- Heavy Laser Gauss Rifle > --- INVENTORY -------- Light Ion Engine Light Nuclear Core Light Nuclear Core Improved Deuterium Engine Heavy Treads High-capacity Battery Compact Matter Pod Energy Filter Hardened Medium Armor Plating Hardened Medium Armor Plating Heavy Reactive Plating Improved Field Recycling Unit Shock Rifle Heavy Laser Heavy Laser Improved Assault Rifle Gauss Rifle Flak Gun Shock Bomb Launcher Heavy Missile Launcher Powered Hammer Power Maul [Rating: 67] Favorites ----------- Power Antimatter Reactor Engine Light Ion Engine Power Core Light Nuclear Core Reactor Antimatter Reactor Propulsion Aluminum Leg Treads Improved Medium Treads Leg Aluminum Leg Flight Unit VTOL Module Utility Humpback Device Improved Heat Sink Storage Humpback Processor Advanced Targeting Computer Hackware Makeshift Hacking Suite Protection Hardened Medium Armor Plating Weapon Heavy Laser Energy Gun Heavy Laser Ballistic Gun Light Assault Rifle Launcher Heavy Missile Launcher Impact Weapon Powered Hammer Piercing Weapon Lance Build | -11 -10 -10 -10 -9 -8 -7 -7 -7 -6 -6 -6 -6 -5 -5 ------- Run | Scr Mat Min Exi Min Mat Fac Was Fac Fac Low Low Dat Pro Fac Slots Evolved 10 | . . . . . 4 2 . . 2 . . . . 2 Power . | . . . . . . . . . . . . . . . Propulsion 2 | . . . . . 1 . . . 1 . . . . . Utility 8 | . . . . . 3 2 . . 1 . . . . 2 Weapon . | . . . . . . . . . . . . . . . Parts Attached 150 | 6 2 . 1 1 24 3 3 54 9 1 15 . 7 24 Power 13 | 1 . . . . 3 . 1 3 1 . 2 . 1 1 Engine 6 | 1 . . . . 1 . . 1 1 . 2 . . . Core 5 | . . . . . 2 . . 1 . . . . 1 1 Reactor 2 | . . . . . . . 1 1 . . . . . . Propulsion 28 | 2 . . . . 7 . 1 4 4 . 2 . 1 7 Treads 13 | . . . . . 1 . 1 3 4 . 2 . 1 1 Leg 9 | 2 . . . . 6 . . 1 . . . . . . Wheel . | . . . . . . . . . . . . . . . Hover . | . . . . . . . . . . . . . . . Flight 6 | . . . . . . . . . . . . . . 6 Utility 61 | 1 1 . 1 . 10 3 1 20 2 . 7 . 2 13 Device 24 | . . . . . 5 2 . 8 1 . 3 . . 5 Storage 12 | 1 1 . 1 . 3 . . 1 . . . . 2 3 Processor 10 | . . . . . 1 . . 3 1 . 2 . . 3 Hackware 2 | . . . . . . . . . . . 1 . . 1 Protection 13 | . . . . . 1 1 1 8 . . 1 . . 1 Artifact . | . . . . . . . . . . . . . . . Weapon 48 | 2 1 . . 1 4 . . 27 2 1 4 . 3 3 Energy Gun 22 | 2 . . . 1 3 . . 11 1 . 3 . . 1 Energy Cannon . | . . . . . . . . . . . . . . . Ballistic Gun 14 | . 1 . . . 1 . . 7 1 . . . 3 1 Ballistic Cannon . | . . . . . . . . . . . . . . . Launcher 10 | . . . . . . . . 8 . 1 1 . . . Special Weapon . | . . . . . . . . . . . . . . . Impact Weapon 1 | . . . . . . . . 1 . . . . . . Slashing Weapon . | . . . . . . . . . . . . . . . Piercing Weapon 1 | . . . . . . . . . . . . . . 1 Special Melee Weapon . | . . . . . . . . . . . . . . . Unidentified Prototypes 3 | . . . . . . . . 3 . . . . . . Parts Lost 71 | . . . . . 9 . . 24 . 1 16 . 9 12 Power 9 | . . . . . 3 . . 2 . . 3 . 1 . Propulsion 16 | . . . . . 3 . . 3 . . 4 . 2 4 Utility 26 | . . . . . . . . 12 . 1 5 . 2 6 Weapon 20 | . . . . . 3 . . 7 . . 4 . 4 2 Highest Loss Streak 8 | . . . . . 7 . . 4 . 1 8 . 4 6 Average Slot Usage (%) 74 | . 97 100 78 75 68 78 64 77 75 91 68 73 78 53 Engine 3 | . 14 14 14 14 . . . 1 2 6 4 . . . Core 1 | . . . . . 7 7 5 . . . . . 2 . Reactor 1 | . . . . . . . 1 4 . . . . . . Treads 7 | . . . . . . . 5 10 25 26 16 13 10 3 Leg 8 | . 28 28 28 28 22 23 5 . . . . . . . Device 11 | . . . . . 7 8 7 19 13 18 10 20 17 3 Storage 8 | . 27 28 17 14 12 7 7 6 . . . . 8 6 Processor 8 | . . . . . 3 7 7 8 8 13 15 20 20 24 Hackware 1 | . . . . . . . . . . . 5 6 6 3 Protection 5 | . . . . . 4 7 7 10 13 13 4 . . 1 Energy Gun 5 | . 16 14 3 4 6 7 7 6 4 4 2 6 3 . Ballistic Gun 5 | . 9 14 14 14 2 7 7 4 4 6 4 . 3 1 Launcher 1 | . . . . . . . . 1 . 1 2 6 3 . Naked Turns . | . . . . . . . . . . . . . . . Heaviest Build 166 | 10 26 26 84 87 166 110 149 149 58 60 62 14 38 74 Greatest Support 120 | 20 20 20 20 20 30 30 70 98 120 120 120 50 50 27 Greatest Overweight (x) 28 | 3 1 1 4 4 28 3 3 3 2 . . . 9 2 Average Overweight (x) 1 | 1 . 1 2 4 4 3 1 . . . . . . . Largest Inventory Capacity 44 | 6 12 12 24 24 44 24 24 24 4 4 4 4 14 20 Average Capacity 18 | 5 11 12 20 24 30 24 24 21 4 4 4 4 10 14 Most Carried 24 | 3 2 2 9 14 16 15 24 24 4 4 4 1 7 4 Average Carried 11 | 2 1 2 6 10 9 14 22 19 3 4 2 1 4 2 Final Capacity 24 | 6 12 12 24 24 24 24 24 4 4 4 4 4 4 4 Final Carried 24 | 1 2 2 9 13 16 15 24 2 4 4 1 1 4 3 Class Distribution -------------------- 59% | Hauler-Mutant 21% | Scavenger-Mutant 9% | Mutant 8% | Derelict-Mutant Dominant Class ---------------- Mutant | -10/Materials Mutant | -10/Mines Hauler-Mutant | -10/Exiles Hauler-Mutant | -9/Mines Hauler-Mutant | -8/Materials Scavenger-Mutant | -7/Factory Hauler-Mutant | -7/Waste Hauler-Mutant | -7/Factory Scavenger-Mutant | -6/Factory Scavenger-Mutant | -6/Lower Caves Scavenger-Mutant | -6/Lower Caves Derelict-Mutant | -6/Data Miner Derelict-Mutant | -5/Proximity Caves Hauler-Mutant | -5/Factory Resources | -11 -10 -10 -10 -9 -8 -7 -7 -7 -6 -6 -6 -6 -5 -5 ----------- Run | Scr Mat Min Exi Min Mat Fac Was Fac Fac Low Low Dat Pro Fac Matter Collected 3032 | 153 150 . 96 16 311 . 66 1377 125 20 380 . 180 158 Remotely . | . . . . . . . . . . . . . . . Salvage Created 4482 | . 150 . . 121 552 . 279 2195 125 16 796 . 68 180 Parts 202 | . 6 . . 9 14 . 1 123 8 3 22 . 5 11 Haulers Intercepted 1 | . . . . . . . . 1 . . . . . . Recyclers Shooed 2 | . . . . . . . . 2 . . . . . . Parts Field Recycled . | . . . . . . . . . . . . . . . Retrieved Matter . | . . . . . . . . . . . . . . . Parts Self-Destructed 38 | . . . . . . . . . . . 24 . 14 . Prevented 4 | . . . . . . . . . . . 1 . 3 . Kills | -11 -10 -10 -10 -9 -8 -7 -7 -7 -6 -6 -6 -6 -5 -5 ------- Run | Scr Mat Min Exi Min Mat Fac Was Fac Fac Low Low Dat Pro Fac Combat Hostiles Destroyed 99 | . 3 . . 2 11 . . 50 2 5 20 . 1 5 Melee 6 | . . . . . . . . 1 . . 1 . . 4 Guns 46 | . 3 . . 2 11 . . 17 2 . 9 . 1 1 AOE 42 | . . . . . . . . 28 . 5 9 . . . Classes Destroyed 16 | . 1 . . 1 3 . . 10 . . . . 1 . Worker 9 | . . . . . . . . 8 . . . . . 1 Builder 6 | . . . . . . . . 6 . . . . . . Tunneler 1 | . . . . 1 . . . . . . . . . . Hauler 1 | . . . . . . . . 1 . . . . . . Recycler 1 | . . . . . . . . 1 . . . . . . Mechanic 1 | . . . . . . . . 1 . . . . . . Watcher 5 | . . . . . . . . 5 . . . . . . Swarmer 19 | . . . . . 1 . . 8 . 3 3 . . 4 Grunt 36 | . 3 . . 2 7 . . 15 . . 9 . . . Brawler 11 | . . . . . 1 . . 6 . . 4 . . . Duelist 6 | . . . . . . . . 4 . . 2 . . . Protector 3 | . . . . . . . . 2 . . 1 . . . Sentry 6 | . . . . . 2 . . 2 1 . 1 . . . Demolisher 1 | . . . . . . . . . . . . . 1 . Hunter 6 | . . . . . . . . 4 . 2 . . . . Programmer 11 | . . . . . . . . 9 1 . . . . 1 Best Kill Streak 11 | . 1 . . 2 3 . . 11 1 5 11 . 1 4 Combat Bots Only 11 | . 1 . . 2 3 . . 7 1 5 11 . 1 4 Max Kills in Single Turn 4 | . 1 . . 1 1 . . 4 1 3 3 . 1 1 Gunslinging . | . . . . . . . . . . . . . . . Exploded 3 | . . . . . . . . 3 . 3 3 . . . Melee 1 | . . . . . . . . 1 . . 1 . . 1 Uniques/NPCs Destroyed . | . . . . . . . . . . . . . . . Combat | -11 -10 -10 -10 -9 -8 -7 -7 -7 -6 -6 -6 -6 -5 -5 -------- Run | Scr Mat Min Exi Min Mat Fac Was Fac Fac Low Low Dat Pro Fac Damage Taken 11096 | . 140 . . . 1532 . . 3840 284 288 1786 . 1046 2180 Core 2284 | . 12 . . . 246 . . 466 . 13 259 . 279 1009 Absorbed by Shields . | . . . . . . . . . . . . . . . Core Remaining (%) 63 | 100 . . . 95 55 . . 33 . . . . 35 . Volleys Fired 319 | . 12 . . 7 55 . 2 131 10 7 43 . 21 31 Largest 2 | . 2 . . 2 2 . 2 2 2 1 2 . 2 2 Hottest 138 | . 80 . . 76 119 . 86 138 83 39 103 . 85 88 Shots Fired 487 | . 22 . . 10 83 . 4 216 20 7 56 . 31 38 Gun 430 | . 22 . . 10 83 . 4 173 20 . 50 . 30 38 Cannon . | . . . . . . . . . . . . . . . Launcher 57 | . . . . . . . . 43 . 7 6 . 1 . Special . | . . . . . . . . . . . . . . . Kinetic 192 | . 9 . . 7 18 . 2 64 10 . 32 . 19 31 Thermal 160 | . 1 . . 3 52 . 2 93 . . 9 . . . Explosive 41 | . . . . . . . . 29 . 7 5 . . . Electromagnetic 94 | . 12 . . . 13 . . 30 10 . 10 . 12 7 Robot Hit Streak 28 | . 10 . . 11 25 . 2 21 16 23 28 . 5 7 Robot Miss Streak 6 | . 1 . . 3 6 . 1 3 1 . 2 . 3 3 Penetration Max 1 | . . . . . . . . 1 . . 1 . 1 . Secondary Targets 3 | . . . . . 2 . . . . . 1 . . . Max Gunslinging Chain 1 | . . . . . 1 . . . . . 1 . . . Shots Hit Robots 382 | . 16 . . 4 62 . 3 176 19 7 46 . 16 33 Core Hits 251 | . 6 . . 3 23 . 2 133 6 10 50 . 8 10 Critical Hits 6 | . 1 . . . . . . 1 . . . . 1 3 Critical Kills 5 | . 1 . . . . . . . . . . . 1 3 Critical Parts Destroyed 1 | . . . . . . . . 1 . . . . . . Melee Attacks 20 | . . . . . . . . 8 . . . . . 12 Impact 8 | . . . . . . . . 8 . . . . . . Slashing . | . . . . . . . . . . . . . . . Piercing 12 | . . . . . . . . . . . . . . 12 Sneak Attacks . | . . . . . . . . . . . . . . . Combat Hostiles . | . . . . . . . . . . . . . . . Follow-up Attacks . | . . . . . . . . . . . . . . . Damage Inflicted 15361 | . 198 . . 56 921 . 67 8740 334 1159 2723 . 408 755 Guns 6045 | . 198 . . 56 921 . 67 2646 334 . 967 . 373 483 Cannons . | . . . . . . . . . . . . . . . Explosions 8842 | . . . . . . . . 5894 . 1159 1754 . 35 . Melee 469 | . . . . . . . . 200 . . . . . 269 Ramming 5 | . . . . . . . . . . . 2 . . 3 Kinetic 2905 | . 58 . . 25 182 . 33 923 215 . 741 . 303 425 Thermal 2944 | . . . . 31 624 . 34 2130 . . 125 . . . Explosive 7707 | . . . . . . . . 4848 . 1159 1700 . . . Electromagnetic 1331 | . 140 . . . 115 . . 639 119 . 155 . 105 58 Impact 200 | . . . . . . . . 200 . . . . . . Slashing . | . . . . . . . . . . . . . . . Piercing 269 | . . . . . . . . . . . . . . 269 Highest Corruption 21 | . . . . . . . . 21 . . 5 5 5 5 Average Corruption 5 | . . . . . . . . 6 . . 4 5 5 4 Corruption Purged . | . . . . . . . . . . . . . . . Effects 173 | . . . . . . . . 116 . . 12 5 26 14 Message Errors 36 | . . . . . . . . 24 . . 2 . 5 5 Matter Fused 32 | . . . . . . . . 18 . . 2 1 6 5 Heat Flow Errors 21 | . . . . . . . . 12 . . 4 1 4 . Energy Discharges 23 | . . . . . . . . 18 . . . 1 4 . Parts Rejected 4 | . . . . . . . . 3 . . . . 1 . Data Loss (minor) 19 | . . . . . . . . 12 . . 3 2 1 1 Data Loss (major) 4 | . . . . . . . . 2 . . . . 2 . Misfires 3 | . . . . . . . . 3 . . . . . . Misdirections 11 | . . . . . . . . 11 . . . . . . Targeting Errors 17 | . . . . . . . . 11 . . . . 3 3 Weapon Failures 3 | . . . . . . . . 2 . . 1 . . . Overload Shots . | . . . . . . . . . . . . . . . Overflow Damage 440 | . . . . . . . . 312 . 27 85 . . 16 Projectiles . | . . . . . . . . . . . . . . . Explosions 369 | . . . . . . . . 257 . 27 85 . . . Melee 71 | . . . . . . . . 55 . . . . . 16 Knockbacks 2 | . . . . . . . . 2 . . . . . . Impact 2 | . . . . . . . . 2 . . . . . . Kinetic . | . . . . . . . . . . . . . . . Secondary . | . . . . . . . . . . . . . . . Self-Inflicted Damage 711 | . . . . . . . . 531 . . 179 . . 1 Shots 24 | . . . . . . . . 19 . . 5 . . . Rammed 2 | . . . . . . . . . 1 . . . . 1 Targets Rammed 3 | . . . . . . . . . 1 . 1 . . 1 Kicked . | . . . . . . . . . . . . . . . Crushed 1 | . . . . . . . . . . . 1 . . . Highest Temperature 525 | . 38 . . 52 525 . . 494 12 . 212 172 176 . Average Temperature 141 | . 17 . . 27 209 . . 137 9 . 109 100 66 . Received Heat Transfer 1788 | . 78 . . . 477 . . 453 72 . 510 . 162 36 Effects 19 | . . . . . 16 . . 3 . . . . . . Shutdowns 7 | . . . . . 5 . . 2 . . . . . . Energy Bleed 3 | . . . . . 3 . . . . . . . . . Interference 4 | . . . . . 3 . . 1 . . . . . . Matter Decay 1 | . . . . . 1 . . . . . . . . . Short Circuit 2 | . . . . . 2 . . . . . . . . . Damage (minor) 1 | . . . . . 1 . . . . . . . . . Damage (core) 1 | . . . . . 1 . . . . . . . . . Siege Activations . | . . . . . . . . . . . . . . . Robots Corrupted . | . . . . . . . . . . . . . . . Combat Hostiles . | . . . . . . . . . . . . . . . Parts Fried 5 | . . . . . 1 . . 4 . . . . . . Impact Corruptions 5 | . . . . . . . . 5 . . . . . . Robots Melted 1 | . . . . . . . . 1 . . . . . . Combat Hostiles 1 | . . . . . . . . 1 . . . . . . Parts Melted 13 | . . . . . 4 . . 9 . . . . . . Heat Transferred 4930 | . . . . 74 1443 . 74 3064 . . 275 . . . Parts Sabotaged . | . . . . . . . . . . . . . . . Parts Stolen . | . . . . . . . . . . . . . . . Parts Stripped . | . . . . . . . . . . . . . . . Power Chain Reactions 1 | . . . . . . . . 1 . . . . . . Missiles Intercepted . | . . . . . . . . . . . . . . . Alert | -11 -10 -10 -10 -9 -8 -7 -7 -7 -6 -6 -6 -6 -5 -5 ------- Run | Scr Mat Min Exi Min Mat Fac Was Fac Fac Low Low Dat Pro Fac Peak Influence 1510 | . 124 48 . 116 158 71 24 1510 730 . . . . 150 Initial 730 | . . 48 . . 44 71 24 . 730 . . . . . Average 285 | . 58 48 . 32 69 71 15 491 588 . . . . 31 Maximum Alert Level 4 | . . . . . . . . 4 3 . . . . . Low Security (%) 62 | 100 100 100 . 100 100 100 100 33 . . . . . 100 Level 1 6 | . . . . . . . . 11 12 . . . . . Level 2 17 | . . . . . . . . 30 46 . . . . . Level 3 8 | . . . . . . . . 13 41 . . . . . Level 4 5 | . . . . . . . . 11 . . . . . . Level 5 . | . . . . . . . . . . . . . . . High Security . | . . . . . . . . . . . . . . . Max Security . | . . . . . . . . . . . . . . . Squads Dispatched 37 | . 1 . . . 5 . . 22 4 . 1 . . 4 Investigation 5 | . . . . . 1 . . 1 1 . . . . 2 Extermination 13 | . . . . . . . . 10 1 . . . . 2 Reinforcement 7 | . 1 . . . 1 . . 3 2 . . . . . Assault 6 | . . . . . . . . 5 . . 1 . . . Garrison 6 | . . . . . 3 . . 3 . . . . . . Intercept . | . . . . . . . . . . . . . . . Construction Impeded 3 | . . . . . . . . 3 . . . . . . Haulers Reinforced . | . . . . . . . . . . . . . . . Stealth | -11 -10 -10 -10 -9 -8 -7 -7 -7 -6 -6 -6 -6 -5 -5 --------- Run | Scr Mat Min Exi Min Mat Fac Was Fac Fac Low Low Dat Pro Fac Distress Signals 21 | . 1 . . . 4 . . 2 . . . . 14 . Communications Jammed . | . . . . . . . . . . . . . . . Distress Signals . | . . . . . . . . . . . . . . . Times Spotted 200 | . 7 . . 2 31 . . 86 5 6 33 . 12 18 Peak Tracking Total 13 | . 2 . . 2 5 . . 6 2 5 13 . 4 7 Tactical Retreats 21 | . . . . . 5 . . 6 . 1 3 . 1 5 Traps | -11 -10 -10 -10 -9 -8 -7 -7 -7 -6 -6 -6 -6 -5 -5 ------- Run | Scr Mat Min Exi Min Mat Fac Was Fac Fac Low Low Dat Pro Fac Traps Triggered 10 | . 1 . . . . 1 . 7 1 . . . . . Indirectly . | . . . . . . . . . . . . . . . Trap Hack Attempts . | . . . . . . . . . . . . . . . Triggered . | . . . . . . . . . . . . . . . Disarmed . | . . . . . . . . . . . . . . . Reprogrammed . | . . . . . . . . . . . . . . . Reused 1 | . . . . . . . . . . . 1 . . . Traps Extracted . | . . . . . . . . . . . . . . . Installed 2 | . . . . . . . . . . . 2 . . . Triggered 2 | . . . . . . . . . . . 1 . . 1 Power Sources Rigged 10 | . . . . . 3 . . 7 . . . . . . Exploded 5 | . . . 2 . 2 . . 1 . . . . . . Machines | -11 -10 -10 -10 -9 -8 -7 -7 -7 -6 -6 -6 -6 -5 -5 ---------- Run | Scr Mat Min Exi Min Mat Fac Was Fac Fac Low Low Dat Pro Fac Machines Disabled 18 | . . . . . . . . 16 . . 1 . . 1 Max in Single Turn 5 | . . . . . . . . 5 . . 1 . . 1 Machines Sabotaged . | . . . . . . . . . . . . . . . Garrisons Compromised . | . . . . . . . . . . . . . . . Overloaded Fab Kills . | . . . . . . . . . . . . . . . Fab Network Shutdowns . | . . . . . . . . . . . . . . . Hacking | -11 -10 -10 -10 -9 -8 -7 -7 -7 -6 -6 -6 -6 -5 -5 --------- Run | Scr Mat Min Exi Min Mat Fac Was Fac Fac Low Low Dat Pro Fac Machines Accessed 25 | . 2 . 1 . 2 . . 10 5 . . 2 . 3 Terminals 17 | . 2 . . . 2 . . 6 4 . . . . 3 Fabricators 1 | . . . . . . . . 1 . . . . . . Repair Stations 2 | . . . . . . . . 2 . . . . . . Recycling Units . | . . . . . . . . . . . . . . . Scanalyzers 1 | . . . . . . . . 1 . . . . . . Garrison Access 1 | . . . . . . . . . 1 . . . . . Total Hacks 79 | . 12 . 1 . 5 . . 25 10 . . 18 . 8 Successful 43 | . 7 . 1 . 1 . . 13 2 . . 18 . 1 Failed 36 | . 5 . . . 4 . . 12 8 . . . . 7 Catastrophic 6 | . . . . . 1 . . 2 3 . . . . . Database Lockouts . | . . . . . . . . . . . . . . . Manual 26 | . 9 . 1 . 3 . . 5 3 . . . . 5 Terminals 47 | . 12 . . . 5 . . 14 8 . . . . 8 Fabricators 2 | . . . . . . . . 2 . . . . . . Repair Stations 4 | . . . . . . . . 4 . . . . . . Recycling Units . | . . . . . . . . . . . . . . . Scanalyzers 5 | . . . . . . . . 5 . . . . . . Garrison Access 2 | . . . . . . . . . 2 . . . . . Terminal Hacks 34 | . 7 . 1 . 1 . . 4 2 . . 18 . 1 Record 1 | . 1 . . . . . . . . . . . . . Part Schematic 9 | . . . . . . . . . . . . 9 . . Robot Schematic 6 | . . . . . . . . . . . . 6 . . Robot Analysis 2 | . 1 . . . . . . 1 . . . . . . Prototype ID Bank 5 | . 2 . . . . . . . . . . 3 . . Branch Access Points 1 | . 1 . . . . . . . . . . . . . Terminal Index 4 | . 1 . . . 1 . . 1 . . . . . 1 Alert Level 1 | . . . . . . . . . 1 . . . . . Unreport Threat 2 | . . . . . . . . 1 1 . . . . . Zone Layout 2 | . 1 . . . . . . 1 . . . . . . EX-Prototype ID Bank 1 | . . . 1 . . . . . . . . . . . Fabricator Hacks 1 | . . . . . . . . 1 . . . . . . Build 1 | . . . . . . . . 1 . . . . . . Repair Station Hacks 3 | . . . . . . . . 3 . . . . . . Scan Component 2 | . . . . . . . . 2 . . . . . . Repair 1 | . . . . . . . . 1 . . . . . . Recycling Unit Hacks . | . . . . . . . . . . . . . . . Scanalyzer 4 | . . . . . . . . 4 . . . . . . Insert Component 2 | . . . . . . . . 2 . . . . . . Analyze 2 | . . . . . . . . 2 . . . . . . Garrison Access Hacks . | . . . . . . . . . . . . . . . Unauthorized Hacks 1 | . . . . . . . . 1 . . . . . . Terminals 1 | . . . . . . . . 1 . . . . . . Assimilate 1 | . . . . . . . . 1 . . . . . . Fabricators . | . . . . . . . . . . . . . . . Repair Stations . | . . . . . . . . . . . . . . . Recycling Units . | . . . . . . . . . . . . . . . Scanalyzers . | . . . . . . . . . . . . . . . Garrison Access . | . . . . . . . . . . . . . . . Data Cores Recovered . | . . . . . . . . . . . . . . . Used . | . . . . . . . . . . . . . . . Hacking Detections 21 | . 2 . . . 2 . . 9 5 . . . . 3 Full Trace Events 3 | . . . . . 1 . . 1 . . . . . 1 Feedback Events . | . . . . . . . . . . . . . . . Feedback Blocked . | . . . . . . . . . . . . . . . Robot Schematics Acquired 6 | . . . . . . . . . . . . 6 . . Robots Built 1 | . . . . . . . . 1 . . . . . . Matter 153 | . . . . . . . . 153 . . . . . . Time 40 | . . . . . . . . 40 . . . . . . Total Robot Build Rating 1 | . . . . . . . . 1 . . . . . . Part Schematics Acquired 11 | . . . . . . . . 2 . . . 9 . . Parts Built . | . . . . . . . . . . . . . . . Matter . | . . . . . . . . . . . . . . . Time . | . . . . . . . . . . . . . . . Total Part Build Rating . | . . . . . . . . . . . . . . . Parts Repaired . | . . . . . . . . . . . . . . . Time 56 | . . . . . . . . 56 . . . . . . Parts Recycled . | . . . . . . . . . . . . . . . Recycled Matter . | . . . . . . . . . . . . . . . Retrieved Matter . | . . . . . . . . . . . . . . . Retrieved Components . | . . . . . . . . . . . . . . . Parts Scanalyzed 2 | . . . . . . . . 2 . . . . . . Part Schematics Acquired 2 | . . . . . . . . 2 . . . . . . Parts Damaged . | . . . . . . . . . . . . . . . Bothacking | -11 -10 -10 -10 -9 -8 -7 -7 -7 -6 -6 -6 -6 -5 -5 ------------ Run | Scr Mat Min Exi Min Mat Fac Was Fac Fac Low Low Dat Pro Fac Used RIF Installer . | . . . . . . . . . . . . . . . Robots Hacked . | . . . . . . . . . . . . . . . Non-combat . | . . . . . . . . . . . . . . . Combat . | . . . . . . . . . . . . . . . Robot Hacks Applied . | . . . . . . . . . . . . . . . Relay Couplers Released . | . . . . . . . . . . . . . . . Robots Rewired 3 | . . . . . . . . . . . 3 . . . Allies Hacked 1 | . . . . . . . . 1 . . . . . . Hacks Repelled . | . . . . . . . . . . . . . . . Allies | -11 -10 -10 -10 -9 -8 -7 -7 -7 -6 -6 -6 -6 -5 -5 -------- Run | Scr Mat Min Exi Min Mat Fac Was Fac Fac Low Low Dat Pro Fac Total Allies 9 | . . 3 . . . . . 2 . . 3 . 1 . Largest Group 3 | . . 3 3 3 2 . . 1 . . 2 1 1 . Highest-Rated Group 94 | . . 40 40 40 24 . . 26 . . 60 12 94 . Highest-Rated Ally 94 | . . 16 16 16 16 . . 26 . . 30 12 94 . Total Orders 7 | . . 2 . 1 1 . . 3 . . . . . . STAY 4 | . . 1 . 1 1 . . 1 . . . . . . FOLLOW 1 | . . 1 . . . . . . . . . . . . DROP 1 | . . . . . . . . 1 . . . . . . PICKUP 1 | . . . . . . . . 1 . . . . . . Ally Attacks 56 | . . . . 12 8 . . . . . 12 . 24 . Total Damage 1355 | . . . . 168 84 . . . . . 289 . 814 . Kills 13 | . . . . 2 3 . . . . . 2 . 6 . Allies Corrupted . | . . . . . . . . . . . . . . . Allies Melted . | . . . . . . . . . . . . . . . Intel | -11 -10 -10 -10 -9 -8 -7 -7 -7 -6 -6 -6 -6 -5 -5 ------- Run | Scr Mat Min Exi Min Mat Fac Was Fac Fac Low Low Dat Pro Fac Robot Analysis Total 2 | . 1 . . . . . . 1 . . . . . . Derelict Logs Recovered 7 | . . . . 2 . . . . . 1 3 . 1 . Drone Launches . | . . . . . . . . . . . . . . . Drone Recoveries . | . . . . . . . . . . . . . . . Decoded 0b10 Intel 26 | . . . . . . . . . . . . . . 26 Traps 2 | . . . . . . . . . . . . . . 2 Emergency Access 2 | . . . . . . . . . . . . . . 2 Items 13 | . . . . . . . . . . . . . . 13 Machines 2 | . . . . . . . . . . . . . . 2 Patrols 2 | . . . . . . . . . . . . . . 2 Guards 5 | . . . . . . . . . . . . . . 5 Exploration | -11 -10 -10 -10 -9 -8 -7 -7 -7 -6 -6 -6 -6 -5 -5 ------------- Run | Scr Mat Min Exi Min Mat Fac Was Fac Fac Low Low Dat Pro Fac Turns Passed 12907 | 70 260 243 723 1178 1380 98 633 4756 617 222 811 122 824 970 Spaces Moved 6145 | 42 144 160 344 467 327 43 316 2233 259 129 410 77 438 756 Core 108 | 34 . . . . 2 . . . . . 9 . 9 54 Treads 4069 | . . . . . 14 . 246 2209 249 129 401 77 429 315 Legs 1581 | 8 144 160 344 467 311 43 70 24 10 . . . . . Wheels . | . . . . . . . . . . . . . . . Hover . | . . . . . . . . . . . . . . . Flight 387 | . . . . . . . . . . . . . . 387 Fastest Speed 34 | 50 120 150 120 240 210 210 180 160 160 160 50 160 50 34 Average Speed 175 | 140 147 150 208 240 250 210 191 177 177 160 157 160 165 106 Slowest Speed 1450 | 200 150 150 240 240 1450 210 210 210 180 160 160 160 500 210 Overloaded Moves . | . . . . . . . . . . . . . . . Propulsion Burnouts . | . . . . . . . . . . . . . . . Robots Hopped 2 | . . . . . . . . . . . . . . 2 Cave-ins Triggered . | . . . . . . . . . . . . . . . Exploration Rate (%) 41 | 3 38 17 69 85 26 2 96 56 9 33 54 68 45 22 Regions Visited 14 Branch Regions 7 Pre-discovered Areas 1 | . . . . 1 . . . . . . . . . . Known Exits Taken 3 | . 1 . . . . . . . 1 1 . . . . Unknown Exits Taken 9 | 1 . 1 1 1 1 . . 1 . . 1 1 1 . Scrap Searched 8 | . . . . 2 . . . . . . 3 . 3 . Spaces Dug 11 | . . . . . . . . 11 . . . . . . Terrain Destroyed 447 | . . . . . . . . 340 . 57 50 . . . Melee . | . . . . . . . . . . . . . . . Projectile 5 | . . . . . . . . . . . 5 . . . AOE 442 | . . . . . . . . 340 . 57 45 . . . Terrain Rammed . | . . . . . . . . . . . . . . . Walls Destroyed . | . . . . . . . . . . . . . . . Machines Disabled . | . . . . . . . . . . . . . . . Actions | -11 -10 -10 -10 -9 -8 -7 -7 -7 -6 -6 -6 -6 -5 -5 --------- Run | Scr Mat Min Exi Min Mat Fac Was Fac Fac Low Low Dat Pro Fac Total 7762 | 51 171 163 354 517 808 55 348 2805 394 136 514 76 505 865 Wait 911 | . 12 4 . 36 376 . 2 283 109 . 26 . 29 34 Move 6128 | 41 143 159 343 466 326 43 315 2232 258 128 409 76 437 752 Hop 2 | . . . . . . . . . . . . . . 2 Pick Up 109 | 4 2 . 5 6 9 1 12 54 3 . 6 . 6 1 Fast Attach 76 | 3 1 . 1 . 12 3 1 14 7 . 10 . 3 21 Attach 54 | 3 1 . . 1 10 . 2 24 1 . 5 . 4 3 Detach 32 | . . . 2 . 9 3 3 8 2 . . . 1 4 Swap 20 | . . . . . 2 . . 16 1 1 . . . . Drop 63 | . . . 3 1 6 5 11 22 2 . 5 . 4 4 Fire 319 | . 12 . . 7 55 . 2 131 10 7 43 . 21 31 Melee 20 | . . . . . . . . 8 . . . . . 12 Ram 1 | . . . . . . . . . . . . . . 1 Kick . | . . . . . . . . . . . . . . . Crush 2 | . . . . . . . . . 1 . 1 . . . Escape Stasis 6 | . . . . . . . . 6 . . . . . . Rewire 7 | . . . . . . . . . . . 7 . . . Trap 12 | . . . . . 3 . . 7 . . 2 . . . Miscellaneous . | . . . . . . . . . . . . . . . Route ------- -11/Scrapyard -10/Materials (discovered 3 exits: [*Mat] / *Min x2) -10/Mines -10/Exiles -9/Mines -8/Materials -7/Factory -7/Waste -7/Factory -6/Factory -6/Lower Caves -6/Lower Caves -6/Data Miner -5/Proximity Caves -5/Factory (discovered 1 exit: Ext) History --------- Turn | Location | Event 30 | -11/Scrapyard | Discovered new exit (range 15) 71 | -11/Scrapyard | Entered Materials 122 | -10/Materials | Discovered new exit (range 15) 133 | -10/Materials | Discovered new exit (range 16) 212 | -10/Materials | Identified exit to Mines 312 | -10/Materials | Build established: Mutant 331 | -10/Materials | Entered Mines 343 | -10/Mines | Assisted by bots powering up and referring to "LRC-V3" 436 | -10/Mines | Deemed a non-threat by the Exiles lab entrance 562 | -10/Mines | Discovered new exit (range 5) 574 | -10/Mines | Entered Exiles 574 | -10/Exiles | Accompanied by 3 allies 610 | -10/Exiles | Met 8R-AWN 634 | -10/Exiles | Met EX-HEX 706 | -10/Exiles | Met EX-DEC 965 | -10/Exiles | Met EX-BIN 994 | -10/Exiles | Aligned with FarCom system 996 | -10/Exiles | Given EX-Vault access code 1049 | -10/Exiles | Build established: Hauler-Mutant 1054 | -10/Exiles | Opened EX-Vault 1068 | -10/Exiles | Found PSU Rigger 1117 | -10/Exiles | Warned to stay clear of 0b10 Research branches 1152 | -10/Exiles | Exiles lab attacked by MAIN.C 1278 | -10/Exiles | Discovered new exit (range 10) 1297 | -10/Exiles | Left Exiles lab with PSU Rigger 1297 | -10/Exiles | Entered Mines 1297 | -9/Mines | Accompanied by 3 allies 1523 | -9/Mines | Learned location of Zion (-7) 2112 | -9/Mines | Learned Materials emergency access door positions 2441 | -9/Mines | Discovered new exit (range 5) 2475 | -9/Mines | Entered Materials 2475 | -8/Materials | Accompanied by 2 allies 2475 | -8/Materials | Evolved 4 slots: Propulsion x1, Utility x3 2577 | -8/Materials | Garrison activated, responded to threat 2654 | -8/Materials | Lost 7 parts (2p2n3w) 3840 | -8/Materials | Discovered new exit (range 9) 3855 | -8/Materials | Entered Factory 3855 | -7/Factory | Evolved 2 slots: Utility x2 3942 | -7/Factory | Build established: Scavenger-Mutant 3953 | -7/Factory | Sucked down chute 3953 | -7/Factory | Entered Waste 3953 | -7/Waste | The area was eerily silent 4059 | -7/Waste | Found Damper Plating 4064 | -7/Waste | Found Hvy. Reactive Plating 4123 | -7/Waste | Found Damper Plating 4421 | -7/Waste | Build established: Hauler-Mutant 4431 | -7/Waste | Discovered new exit (range 16) 4586 | -7/Waste | Entered Factory 5289 | -7/Factory | Fabricated R-06 Scavenger? 6208 | -7/Factory | Destroyed 7 combat bots 7639 | -7/Factory | Lost 3 parts (1p1u1w) 7642 | -7/Factory | Garrison activated, responded to threat 7898 | -7/Factory | System corruption reached 10% 8186 | -7/Factory | First assault squad dispatched 8705 | -7/Factory | Lost 4 parts (1n3u) 9014 | -7/Factory | Build established: Scavenger-Mutant 9165 | -7/Factory | Core integrity fell below 50% 9223 | -7/Factory | Lost 4 parts (1p3u) 9328 | -7/Factory | Discovered new exit (range 7) 9342 | -7/Factory | Entered another Factory area 9342 | -6/Factory | Evolved 2 slots: Propulsion x1, Utility x1 9944 | -6/Factory | Discovered new exit (range 8) 9957 | -6/Factory | Identified exit to Lower Caves 9959 | -6/Factory | Entered Lower Caves 10118 | -6/Lower Caves | Learned location of 1 exit from Factory 10172 | -6/Lower Caves | Discovered new exit (range 7) 10180 | -6/Lower Caves | Identified exit to Lower Caves 10181 | -6/Lower Caves | Entered another Lower Caves area 10249 | -6/Lower Caves | Learned Factory stockpile data 10418 | -6/Lower Caves | Attracted the attention of an 0b10 outpost 10476 | -6/Lower Caves | Destroyed 11 combat bots 10518 | -6/Lower Caves | Lost 8 parts (1p2n3u2w) 10659 | -6/Lower Caves | Learned 4 Factory zone layouts 10776 | -6/Lower Caves | Lost 8 parts (2p2n2u2w) 10948 | -6/Lower Caves | Discovered new exit (range 9) 10962 | -6/Lower Caves | Learned Factory terminal intel 10992 | -6/Lower Caves | Entered Data Miner 10992 | -6/Data Miner | Accompanied by 1 ally 10992 | -6/Data Miner | Discovered new exit (range 6) 11023 | -6/Data Miner | Met Data Miner 11074 | -6/Data Miner | Received God Mode back door access code from Data Miner 11114 | -6/Data Miner | Entered Proximity Caves 11114 | -5/Proximity Caves | Accompanied by 1 ally 11126 | -5/Proximity Caves | Build established: Derelict-Mutant 11330 | -5/Proximity Caves | Escorted by Enhanced Grunt 11549 | -5/Proximity Caves | Learned Factory non-interactive machine intel 11666 | -5/Proximity Caves | Lost 4 parts (1n1u2w) 11784 | -5/Proximity Caves | Core integrity fell below 50% 11904 | -5/Proximity Caves | Discovered new exit (range 3) 11938 | -5/Proximity Caves | Entered Factory 11938 | -5/Factory | Evolved 2 slots: Utility x2 11939 | -5/Factory | Identified exit to Extension 11942 | -5/Factory | Loaded intel: 184 non-interactive machine locations 11943 | -5/Factory | Loaded intel: 22 terminal locations 11968 | -5/Factory | Lost 3 parts (1n1u1w) 12537 | -5/Factory | Lost 3 parts (1u2w) 12735 | -5/Factory | Incoming investigation squad redirected 12736 | -5/Factory | Core integrity fell below 50% 12757 | -5/Factory | Core integrity fell below 20% 12793 | -5/Factory | Lost 6 parts (3n3u) 12908 | -5/Factory | Destroyed by P-70 Sage with Tesla Rifle Last Messages --------------- 12769_ Acquired Lgt. Nuclear Core. 12777_ Acquired VTOL Module. 12779_ Acquired 24 matter. 12781_ Acquired VTOL Module. 12782_ System corrupted: Matter fused (-9). 12798_ >> DECODED: Stasis Trap location. 12800_ System corrupted: Matter fused (-8). 12805_ Acquired Imp. Coolant Injector. 12811_ Penetrated by Slug. 12823_ Acquired Adv. Weight Redist. System. 12828_ >> DECODED: Adv. Field Recycling Unit location. 12841_ L#MSU=C#K3XMSOOH3Z3O&SWGCZZI KL 12854_ Dropped Hcp. Storage Unit. 12856_ Acquired Imp. Proton Missile Launcher. 12878_ VTOL Module destroyed. 12880_ K-01 Serf cleans the Fabricator. 12882_ CBGQ A:IM2QMEX4FP&#EN:&ZABBQ#Y WRC9SAB 12887_ Acquired Imp. Terrain Scanner. 12898_ >> DECODED: Microactuators location. 12906_ Penetrated by Slug. Map ----- +----------------------------------------------------+ | ?????????????????????????????????????????????????? | | ?????????????????????????????????????????????????? | | ?????????????????????????????????????????????????? | | ?????????????????????????????????????????????????? | | ?????????????????????????????????????????????????? | | ?????????????????????????????????????????????????? | | ???????????????????????????????? ????""""?""""???? | | ???????????????????????????????? #???""""?""""???? | | ?????????????????????????????? #???""""?""""???? | | ????????!!?????????????????? #???""""?""""???? | | ???????????????????????????# !!#???""""?""""???? | | ???????????????????????????# [ !!#???""""?""""???? | | ???????????????????????????# #???????????????? | | ???????????????????????????# """ #???????????????? | | ???????????????????????????# """ #???????????????? | | ?????????######????????????# """ #???????????????? | | ????????? ????????????? #???????????????? | | ???????? ????###########+############?????? | | ???????? ???# ???? | | ???????# ???# h ???? | | ???????# ??# ???? | | ???????# ??# ???? | | ???????# ?# ???? | | ???????# ?# #####+############?????? | | ???????# # p# #????????p????? | | ???????# # @# """ #???? ????????? | | ???????# + # """ #?????????????? | | ???????# # # """ #?????????????? | | ????????############# # [ ##????????????? | | ????????????? ?# # #?????????????? | | ?????????????? ?# # " F" #?????? ??????? | | ??????????"""" """" # # """" #?????????????? | | ??????????"""" """" # u# ? #?????????????? | | ??????????"""" """" + #########??????????????? | | ??????????"""" """" # ????????????? | | ???????????? # #######????????????????? | | ??????????? """"?# ##############??#+#???#+ | | ??????????? """"?# # #??# ##### | | ???????????" """"?# # #??# | | ???????????? """"?# # #??# | | ????????????????????# /p #??# """" | | ????????????????????# # """ """ #??# "F " | | ????????????????????# # """ """ #??# | | ????????????????????# # """ """ #### | | ????????????????????# # / ! | | ????????????????????# # """ """ ########### | | ?????????"""?"""????# # """ """ #?????????? | | ?????????"""?"""????# # """ """ #?????????? | | ?????????"""?"""????+ + #?????????? | | ????????????????????# ##############?????????? | +----------------------------------------------------+ Best States ------------- Heat Dissipation 71 Coolant Potential 80 Energy Generation 21 Energy Capacity 665 Matter Stores 300 Matter Capacity 300 Sight Range 16 Robot Scan Range 13 Terrain Scan Range 16 Terrain Scan Density 10 Additional Mass Support 9 Base Temperature (-) 200 Armor Coverage 1200 Resistance: KI 40 Resistance: TH 15 Resistance: EM 90 Core Shielding 20 Weapon Cycling 15 Evasion (%) 63 Targeting Accuracy 16 Target Analysis 6 Recoil Reduction 4 Offensive Hacking 14 Item Schematics ----------------- Overload Amplifier | -7/Factory | Scanalyzed Adv. Cryofiber Web | -7/Factory | Scanalyzed Combat Drone Bay | -6/Data Miner | Free Lgt. Regenerative Plating | -6/Data Miner | Free Exp. Cesium-ion Thruster | -6/Data Miner | Free Triangulator | -6/Data Miner | Free Exp. Sensor Array | -6/Data Miner | Free Exp. Terrain Scanner | -6/Data Miner | Free Exp. Terrain Scan Processor | -6/Data Miner | Free Exp. Targeting Computer | -6/Data Miner | Free Exp. Transmission Jammer | -6/Data Miner | Free Robot Schematics ------------------ S-27 Virus | -6/Data Miner | Free G-50 Soldier | -6/Data Miner | Free L-41 Fighter | -6/Data Miner | Free X-72 Disruptor | -6/Data Miner | Free I-36 Angel | -6/Data Miner | Free I-47 Archangel | -6/Data Miner | Free Fabricated ------------ R-06 Scavenger | x1 | -7/Factory | Preloaded Alien Tech Used ----------------- None Achievements -------------- My Command Is Your Wish Challenges ------------ None Game ------ Seed HypercooledReactionPlating Manual? 0 Play Time 01:13:34 Cumulative 44.3 hours Start 2021.04.23 @ 06:22:17 End 2021.04.23 @ 07:33:40 Sessions 1 Manual Loads 0 Difficulty Rogue Special Mode None Game No. 90 Rogue 79 Adventurer 4 Explorer 7 Win Type - Total 2 Types 2/0/0/0/0/0/0/0/0 Lore% 38 Gallery% 61 Achievement% 39 Wizard Run 0 Options --------- ASCII 0 Keyboard 1 Movement Numpad Keybinds 0 Fullscreen 1 Font 18/SmallcapsGlow Map View 76x50 Tactical HUD 1 Map Filters NONE Filters NONE Steam 1 RUN: 5aab2bfe-4958-49b3-ae6f-6f0de971d71e